[Event "CIS Master Groups 2024"]
[Site "Vasto"]
[Date "2024.04.09"]
[Round "2.5"]
[White "Fier, Alexandr"]
[Black "Favaloro, Andrea"]
[Result "1/2-1/2"]
[ECO "D41"]
[WhiteElo "2566"]
[BlackElo "2412"]
[Annotator "TA"]
[PlyCount "64"]
[EventDate "2024.04.07"]
[EventType "team-tourn"]
[EventCountry "ITA"]
[SourceTitle "playchess.com"]
[Source "ChessBase"]
[SourceQuality "1"]
[TimeControl "40/5400+30:900+30"]

{[%evp 26,64,23,10,17,1,0,0,7,0,0,-5,0,0,-5,-9,0,0,0,0,0,0,0,0,0,0,0,0,7,-79,0,-7,-12,-8,0,0,0,0,0,0,0]} 1. d4 {[%emt 0:00:04]} d5 {[%emt 0:04:42]} 2. c4 {[%emt 0:00:06]} e6 {[%emt 0:00:23]} 3. Nf3 {[%emt 0:00:11]} Nf6 {[%emt 0:00:27]} 4. Nc3 {[%emt 0:00:05]} c5 {[%emt 0:00:16]} 5. cxd5 {[%emt 0:00:18]} Nxd5 {[%emt 0:00:07]} 6. e4 {[%emt 0:00:03]} Nxc3 {[%emt 0:00:09]} 7. bxc3 {[%emt 0:00:03]} cxd4 {[%emt 0:00:15]} 8. cxd4 {[%emt 0:00:05]} Bb4+ {[%emt 0:00:10]} 9. Bd2 {[%emt 0:00:03]} Bxd2+ {[%emt 0:00:09]} 10. Qxd2 {[%emt 0:00:04]} O-O {[%emt 0:00:10]} 11. Bc4 {[%emt 0:00:24]} Nd7 {[%emt 0:00:20][%cal Bb8d7,Bd7f6,Bf6e4][%mdl 32]} 12. O-O {[%emt 0:00:05]} b6 {[%emt 0:00:22]} 13. Rad1 {[%emt 0:00:10]} Bb7 {[%emt 0:00:14]} 14. Rfe1 {[%emt 0:00:03]} Rc8 {[%emt 0:00:22]} 15. Bb3 {[%emt 0:00:05]} Re8 {[%emt 0:00:11]} 16. Re3 {[%emt 0:01:13]} Nf6 {[%emt 0:01:55]} 17. d5 {[%emt 0:05:00]} exd5 {[%emt 0:00:33]} 18. e5 {[%emt 0:00:06]} Ne4 {[%emt 0:00:08]} 19. Qe1 {[%emt 0:00:04] [#] Hoping for Rxe4.} Qe7 {[%emt 0:00:43]} 20. Nd4 {[%emt 0:00:08][%cal Bf3d4,Bd4e6,Be6g5,Bg5f7][%mdl 32]} Qc5 {[%emt 0:00:21]} (20... Qxe5 $6 21. f3 $16) 21. e6 {[%emt 0:12:11]} fxe6 {[%emt 0:00:11]} 22. Rxe4 {[%emt 0:02:59]} dxe4 {[%emt 0:00:08]} 23. Nxe6 {[%emt 0:00:03]} Qe7 {[%emt 0:20:02] [#] ...Kh8 would now be deadly.} 24. Ng5+ {[%emt 0:00:15]} Kh8 {[%emt 0:00:06]} 25. Nf7+ {[%emt 0:00:03]} Kg8 {[%emt 0:00:05]} 26. Qe3 {[%emt 0:03:36] Intending Ne5+ and mate.} Rc5 {[%emt 0:49:02] And now ...Kf8 would win.} 27. f4 {[%emt 0:24:44]} (27. Nd6+ $11 Kh8 28. Nxe8 Qxe8 29. h4) 27... Bc8 {[%emt 0:04:15]} ({Inferior is} 27... exf3 28. Qxe7 (28. Ng5+ Bd5 $16) 28... f2+ 29. Kh1 (29. Kxf2 Rc2+ 30. Kg3 Rxg2+ 31. Kh3 Bc6 32. Rd8 Bd7+ 33. Qxd7 Rxh2+ 34. Kxh2 h6 35. Ng5+ Kh8 36. Rxe8#) 29... Bxg2+ 30. Kxg2 f1=B+ 31. Rxf1 (31. Kxf1 Rf8 32. Kg2 Rf5 33. Nh6+ Kh8 34. Nxf5 Rg8 35. Bxg8 Kxg8 36. Qxg7#) (31. Kxf1 Rf8 32. Kg2 Rf5 33. Nd6+ Kh8 34. Nxf5 Rg8 35. Bxg8 Kxg8 36. Qxg7#)) (27... Rf8 $17 28. Rd7 Qxd7 29. Ne5+ Qd5) 28. Nd6+ {[%emt 0:03:16] The position is equal.} Kf8 {[%emt 0:07:07]} 29. Nxe8 {[%emt 0:00:07]} Qxe8 {[%emt 0:03:09]} 30. h3 {[%emt 0:00:12]} Be6 {[%emt 0:02:00]} 31. Rd4 {[%emt 0:11:35]} Bxb3 {[%emt 0:00:29]} 32. axb3 {[%emt 0:00:04]} Rc7 {[%emt 0:00:39] A balanced but interesting game.   Weighted Error Value: White=0.10 (very precise) /Black=0.09 (flawless) .  Mistake:       	White=1     	Black=1      OK:         	White=8     	Black=7      Best:        	White=1     	Black=3} 1/2-1/2

[Event "CIS Master Groups 2024"]
[Site "Vasto"]
[Date "2024.04.09"]
[Round "2.6"]
[White "Iturrizaga Bonelli, Eduardo"]
[Black "Iermito, Sebastian"]
[Result "1/2-1/2"]
[ECO "A37"]
[WhiteElo "2589"]
[BlackElo "2511"]
[Annotator "TA"]
[PlyCount "141"]
[EventDate "2024.04.07"]
[EventType "team-tourn"]
[EventCountry "ITA"]
[SourceTitle "playchess.com"]
[Source "ChessBase"]
[SourceQuality "1"]
[TimeControl "40/5400+30:900+30"]

{[%evp 53,140,145,142,132,172,159,156,158,167,170,198,203,198,199,256,239,256,262,683,435,548,528,509,514,491,224,231,182,245,245,245,226,227,226,212,170,168,8,8,0,0,0,0,0,0,0,0,0,0,0,0,0,0,0,0,0,0,0,0,0,0,0,0,0,0,0,0,0,0,0,0,0,0,0,0,0,0,0,0,0,0,0,0,0,0,0,0,0,0]} 1. c4 {[%emt 0:01:05]} c5 {[%emt 0:00:07]} 2. Nc3 {[%emt 0:00:19]} Nc6 {[%emt 0:00:04]} 3. Nf3 {[%emt 0:00:07]} e5 {[%emt 0:00:51]} 4. g3 {[%emt 0:01:29]} g6 {[%emt 0:00:29]} 5. Bg2 {[%emt 0:00:08]} Bg7 {[%emt 0:00:14]} 6. O-O {[%emt 0:00:08]} d6 {[%emt 0:00:05]} 7. a3 {[%emt 0:00:21]} a5 {[%emt 0:00:16]} 8. d3 {[%emt 0:00:26]} Nge7 {[%emt 0:00:13]} 9. Ne1 {[%emt 0:09:46]} Be6 {[%emt 0:01:14]} 10. Bg5 {[%emt 0:00:16]} f6 {[%emt 0:00:30]} 11. Bd2 {[%emt 0:00:36]} O-O {[%emt 0:15:12]} 12. Nd5 {[%emt 0:10:23] A37: Symmetrical English vs ...g6: 4 Bg2 Bg7 5 Nf3.} Bf7 {[%emt 0:13:46]} 13. Nxe7+ {[%emt 0:16:16]} Qxe7 {[%emt 1:03:59]} 14. Nc2 {[%emt 0:00:04]} a4 {[%emt 0:00:00]} 15. Ne3 {[%emt 0:00:34]} Nd4 {[%emt 0:00:00]} 16. Nd5 {[%emt 0:01:48]} Qd8 {[%emt 0:00:00]} 17. Bc3 $146 {[%emt 0:00:05]} ({Predecessor:} 17. b4 axb3 18. e3 Nc2 19. Rb1 Rxa3 20. Bc1 Ra7 21. Rxb3 Nb4 22. Nxb4 cxb4 23. Rxb4 {1-0 Shahinyan,D (2456)-Torosyan,N (2374) ARM-ch 1st League 82nd 2021 (2)}) 17... Nb3 {[%emt 0:00:00]} 18. Rb1 {[%emt 0:00:18]} Rb8 {[%emt 0:00:00]} 19. e3 {[%emt 0:03:28]} f5 {[%emt 0:00:00]} 20. Qc2 {[%emt 0:07:44]} Kh8 {[%emt 0:00:00]} 21. f4 {[%emt 0:00:58]} Bxd5 {[%emt 0:00:00]} 22. Bxd5 {[%emt 0:00:27]} Qe7 {[%emt 0:00:00]} 23. Rbe1 {[%emt 0:00:52]} exf4 {[%emt 0:00:00]} 24. gxf4 {[%emt 0:01:47]} Rbe8 {[%emt 0:00:00]} 25. Rf3 {[%emt 0:08:40]} Bf6 {[%emt 0:00:00]} 26. Rg3 {[%emt 0:12:56]} Qg7 {[%emt 0:00:00]} 27. h4 {[%emt 0:04:52]} Bxc3 {[%emt 0:00:00]} 28. Qxc3 {[%emt 0:01:24]} Re7 {[%emt 0:01:11]} 29. h5 {[%emt 0:02:38]} Qxc3 {[%emt 0:00:09]} 30. bxc3 {[%emt 0:00:06]} Kg7 {[%emt 0:00:58]} 31. Kf2 {[%emt 0:03:50]} Kf6 {[%emt 0:00:34]} 32. Reg1 $1 {[%emt 0:03:08]} Rg7 {[%emt 0:00:13]} 33. e4 {[%emt 0:00:14]} fxe4 {[%emt 0:03:14]} (33... Re8 $142 34. Ke3 Na5) 34. dxe4 $18 {[%emt 0:00:59]} Na5 {[%emt 0:00:06]} 35. f5 {[%emt 0:01:41]} Ke5 $2 {[%emt 0:02:14]} (35... g5 36. h6 Rgg8) 36. hxg6 {[%emt 0:00:19]} hxg6 {[%emt 0:00:02]} 37. Rxg6 {[%emt 0:00:08]} Rxg6 {[%emt 0:00:05]} 38. Rxg6 {[%emt 0:00:06]} Rf6 {[%emt 0:00:34]} 39. Rg7 {[%emt 0:02:27]} (39. Rg4 $142) 39... Kf4 $18 {[%emt 0:00:49]} 40. Rh7 {[%emt 0:00:49]} (40. Bxb7 Nxb7 41. Rxb7 Kxe4 $11) 40... Nc6 {[%emt 0:01:32] [#]} 41. Bxc6 $1 {[%emt 0:20:49]} ({Less strong is} 41. Rxb7 Ne5 $16) 41... bxc6 {[%emt 0:15:06]} 42. Rh4+ {[%emt 0:00:05]} Ke5 {[%emt 0:00:00]} 43. Ke3 {[%emt 0:00:00]} d5 {[%emt 0:00:00]} 44. cxd5 {[%emt 0:00:00]} cxd5 {[%emt 0:00:00] [#]} 45. exd5 $2 {[%emt 0:00:00]} (45. Kd3 $1 $18) 45... Rxf5 $11 {[%emt 0:00:00]} 46. c4 {[%emt 0:00:00]} Rg5 {[%emt 0:00:00]} 47. Rh3 {[%emt 0:00:00]} Rg1 {[%emt 0:00:14]} 48. Rh5+ {[%emt 0:00:00]} Kd6 {[%emt 0:00:17]} 49. Rh6+ {[%emt 0:00:00]} Ke5 $1 {[%emt 0:00:13]} 50. Re6+ {[%emt 0:00:00]} Kf5 {[%emt 0:00:01]} 51. Kd2 {[%emt 0:00:00]} Rg2+ {[%emt 0:05:49]} 52. Re2 {[%emt 0:00:00]} Rg3 {[%emt 0:00:19]} 53. Re3 {[%emt 0:00:00]} Rg2+ {[%emt 0:00:01]} 54. Kd1 {[%emt 0:00:16]} Rg1+ {[%emt 0:00:39]} 55. Ke2 {[%emt 0:00:17]} Rg2+ {[%emt 0:00:18]} 56. Kd1 {[%emt 0:05:32]} Rg1+ {[%emt 0:00:04]} 57. Kd2 {[%emt 0:00:50]} Rg2+ {[%emt 0:00:04]} 58. Ke1 {[%emt 0:01:33]} Rg1+ {[%emt 0:00:05]} 59. Kf2 {[%emt 0:00:52]} Rc1 {[%emt 0:00:12]} 60. Rd3 {[%emt 0:00:15]} Rxc4 {[%emt 0:00:54]} 61. d6 {[%emt 0:00:06]} Rf4+ {[%emt 0:00:06]} 62. Ke3 {[%emt 0:00:40]} (62. Kg3 $5 Rg4+ $8 63. Kf2 $11 (63. Kf3 Rg8 $11)) 62... Re4+ {[%emt 0:00:06]} 63. Kd2 {[%emt 0:00:03]} Re8 $1 {[%emt 0:00:06]} 64. Kc3 {[%emt 0:00:07]} (64. d7 $5 Rd8 $8 65. Rd5+ Ke4 (65... Ke6 66. Rxc5 Rxd7+ 67. Kc3 $11) 66. Rxc5 $11) 64... Ke6 {[%emt 0:01:31]} 65. Re3+ {[%emt 0:01:09]} (65. d7 $5 Rd8 $8 66. Rg3 $11) 65... Kd7 {[%emt 0:00:03]} 66. Rxe8 {[%emt 0:00:04]} Kxe8 {[%emt 0:00:01]} 67. Kc4 {[%emt 0:00:06]} Kd7 {[%emt 0:00:02]} 68. Kxc5 {[%emt 0:00:04]} Kd8 {[%emt 0:00:04]} 69. Kc6 {[%emt 0:00:23]} (69. Kd5 $5) 69... Kc8 {[%emt 0:00:02]} 70. d7+ {[%emt 0:00:07]} Kd8 {[%emt 0:00:02]} 71. Kd6 {[%emt 0:00:03]} 1/2-1/2

[Event "CIS Master Groups 2024"]
[Site "Vasto"]
[Date "2024.04.09"]
[Round "2.7"]
[White "Godena, Michele"]
[Black "Bifulco, Michel"]
[Result "1-0"]
[ECO "B22"]
[WhiteElo "2429"]
[BlackElo "2303"]
[Annotator "TA"]
[PlyCount "59"]
[EventDate "2024.04.07"]
[EventType "team-tourn"]
[EventCountry "ITA"]
[SourceTitle "playchess.com"]
[Source "ChessBase"]
[SourceQuality "1"]
[TimeControl "40/5400+30:900+30"]

{[%evp 10,59,22,27,25,26,28,16,24,0,41,25,36,-11,-10,-10,-8,-14,20,34,78,74,71,74,104,106,342,339,353,337,350,343,358,351,386,348,373,387,372,371,445,471,472,464,498,452,534,494,601,590,1212,1187]} 1. e4 {[%emt 0:00:03]} c5 {[%emt 0:00:05]} 2. c3 {[%emt 0:00:29]} d5 {[%emt 0:00:06]} 3. exd5 {[%emt 0:00:09]} Qxd5 {[%emt 0:00:07]} 4. d4 {[%emt 0:00:22]} Nc6 {[%emt 0:00:11]} 5. Nf3 {[%emt 0:00:12]} Bf5 {[%emt 0:00:08]} 6. Be3 {[%emt 0:06:57]} Nf6 {[%emt 0:00:30]} 7. Bb5 {[%emt 0:08:15]} cxd4 {[%emt 0:06:45]} 8. c4 {[%emt 0:00:21]} Qd6 {[%emt 0:02:21] The position is equal.} 9. Qxd4 {[%emt 0:02:07]} Qxd4 {[%emt 0:04:37]} 10. Nxd4 {[%emt 0:00:56]} Bd7 {[%emt 0:00:10]} 11. Nc3 {[%emt 0:15:35]} (11. Nxc6 $14 bxc6 12. Ba4) 11... Ng4 $11 {[%emt 0:10:45]} 12. Bxc6 {[%emt 0:21:17]} bxc6 {[%emt 0:03:31]} 13. Bd2 {[%emt 0:03:50]} O-O-O {[%emt 0:25:35][%cal Be8c8,Bc8b8,Bb8c7,Bc7b6][%mdl 32]} 14. Nf3 {[%emt 0:02:38] Inhibits Ne5.} g6 {[%emt 0:12:52]} 15. h3 {[%emt 0:03:06]} Nh6 {[%emt 0:01:03]} 16. Be3 {[%emt 0:11:49] Black is weak on the dark squares} Kb8 {[%emt 0:04:31]} 17. O-O-O {[%emt 0:02:50] White is much more active. The black rooks are passive.} Nf5 $2 {[%emt 0:08:38] [#] This costs Black the game.} (17... Bg7 $16) 18. Ne5 $1 $18 {[%emt 0:01:37][%csl LRd7,LRf7]} Nxe3 {[%emt 0:09:13]} 19. fxe3 {[%emt 0:00:13]} (19. Nxd7+ Kc7 20. fxe3 Rxd7 $16) (19. Rxd7 Rxd7 20. Nxd7+ Kc7 $18) 19... Kc7 {[%emt 0:00:18]} 20. Nxf7 {[%emt 0:00:22] Excellent horsemanship.} Bg7 {[%emt 0:00:03]} 21. Rhf1 {[%emt 0:04:53]} Rb8 {[%emt 0:02:21]} 22. Nxh8 {[%emt 0:00:11]} Rxh8 {[%emt 0:00:02]} 23. Ne4 {[%emt 0:02:35]} Bf5 {[%emt 0:01:58]} 24. Nc5 {[%emt 0:03:40]} Kb6 {[%emt 0:03:17]} 25. b4 {[%emt 0:00:37] White is clearly winning.} a5 {[%emt 0:00:18]} 26. a3 {[%emt 0:05:06][%cal Ba2a3,Ba3b4][%mdl 32]} axb4 {[%emt 0:00:10]} 27. axb4 {[%emt 0:00:04]} Ra8 {[%emt 0:00:05] [#] Strongly threatening ...Ra1+.} 28. e4 {[%emt 0:00:32]} Ra1+ {[%emt 0:01:48]} 29. Kc2 {[%emt 0:00:15]} Ra2+ {[%emt 0:01:45]} 30. Kb3 {[%emt 0:00:11] Weighted Error Value: White=0.03 (flawless) /Black=0.38.  Loses game:     	---       	Black=1      Mistake:       	White=1     	---        Inaccurate:     	---       	Black=5      OK:         	White=13    	Black=8      Best:        	White=2     	---} 1-0

[Event "CIS Master Groups 2024"]
[Site "Vasto"]
[Date "2024.04.09"]
[Round "2.8"]
[White "Bertagnolli, Alexander"]
[Black "Bellia, Fabrizio"]
[Result "1/2-1/2"]
[ECO "E11"]
[WhiteElo "2333"]
[BlackElo "2384"]
[Annotator "RC"]
[PlyCount "61"]
[EventDate "2024.04.07"]
[EventType "team-tourn"]
[EventCountry "ITA"]
[SourceTitle "playchess.com"]
[Source "ChessBase"]
[SourceQuality "1"]
[TimeControl "40/5400+30:900+30"]

1. d4 {[%emt 0:00:03]} d5 {[%emt 0:00:25]} 2. c4 {[%emt 0:00:26]} e6 {[%emt 0:00:06]} 3. Nf3 {[%emt 0:00:13]} Nf6 {[%emt 0:00:31]} 4. g3 {[%emt 0:00:24]} Bb4+ {[%emt 0:00:41]} 5. Bd2 {[%emt 0:01:16]} Be7 {[%emt 0:00:06]} 6. Bg2 {[%emt 0:00:11]} O-O {[%emt 0:00:09]} 7. O-O {[%emt 0:00:11]} c6 {[%emt 0:00:48]} 8. Qc2 {[%emt 0:00:37]} a5 {[%emt 0:01:32]} 9. Bf4 {[%emt 0:03:59]} Na6 {[%emt 0:04:14]} 10. Nbd2 {[%emt 0:03:01]} b6 {[%emt 0:11:00]} 11. Rfd1 {[%emt 0:12:41]} Bb7 {[%emt 0:02:55]} 12. Rac1 {[%emt 0:12:17]} Rc8 {[%emt 0:08:52]} 13. e4 {[%emt 0:09:22]} c5 {[%emt 0:09:35]} 14. dxc5 {[%emt 0:18:36]} Bxc5 {[%emt 0:13:09]} 15. exd5 {[%emt 0:00:55]} exd5 {[%emt 0:00:52]} 16. Nb3 {[%emt 0:01:00]} Bd6 {[%emt 0:04:43]} 17. Qf5 {[%emt 0:02:32]} Bxf4 {[%emt 0:01:43]} 18. Qxf4 {[%emt 0:00:47]} a4 {[%emt 0:00:54]} 19. Nbd2 {[%emt 0:06:57]} Nc5 {[%emt 0:11:54]} 20. Ne5 {[%emt 0:03:02]} Qe7 {[%emt 0:03:58]} 21. Ndf3 {[%emt 0:02:02]} h6 {[%emt 0:05:35]} 22. Re1 {[%emt 0:08:39]} Ne6 {[%emt 0:02:06]} 23. Qe3 {[%emt 0:01:13]} Qc5 {[%emt 0:02:19]} 24. Qxc5 {[%emt 0:02:57]} Rxc5 {[%emt 0:01:49]} 25. b4 {[%emt 0:01:26]} axb3 {[%emt 0:00:47]} 26. axb3 {[%emt 0:00:04]} dxc4 {[%emt 0:01:22]} 27. Nxc4 {[%emt 0:01:22]} Bxf3 {[%emt 0:01:28]} 28. Bxf3 {[%emt 0:00:04]} Nd4 {[%emt 0:00:04]} 29. Nd2 {[%emt 0:00:13]} Nxf3+ {[%emt 0:01:21]} 30. Nxf3 {[%emt 0:00:06]} Rfc8 {[%emt 0:00:17]} 31. Rxc5 {[%emt 0:04:11]} 1/2-1/2

[Event "CIS Master Groups 2024"]
[Site "Vasto"]
[Date "2024.04.09"]
[Round "2.9"]
[White "Ivanisevic, Ivan"]
[Black "Glek, Igor"]
[Result "1-0"]
[ECO "D27"]
[WhiteElo "2518"]
[BlackElo "2409"]
[Annotator "TA"]
[PlyCount "125"]
[EventDate "2024.04.07"]
[EventType "team-tourn"]
[EventCountry "ITA"]
[SourceTitle "playchess.com"]
[Source "ChessBase"]
[SourceQuality "1"]
[TimeControl "40/5400+30:900+30"]

{[%evp 33,125,17,23,16,27,25,61,30,42,20,42,8,14,8,12,0,4,0,1,-4,0,0,0,0,0,0,0,0,0,0,0,7,0,0,0,0,187,187,264,242,254,252,229,238,352,361,339,326,437,426,337,455,455,455,443,455,440,434,448,402,611,594,683,4739,4882,4627,29976,29977,29977,29978,29978,29979,29979,29980,29980,29981,29981,29982,29982,29974,29974,29973,29976,29976,29977,29978,29978,29979,29979,29980,29980,29980,29980,29981]} 1. d4 {[%emt 0:00:47]} d5 {[%emt 0:03:44]} 2. c4 {[%emt 0:00:10]} dxc4 {[%emt 0:02:03]} 3. e3 {[%emt 0:01:25]} Nf6 {[%emt 0:00:07]} 4. Bxc4 {[%emt 0:00:05]} e6 {[%emt 0:00:02]} 5. Nf3 {[%emt 0:00:13]} c5 {[%emt 0:00:04]} 6. O-O {[%emt 0:00:10]} Nc6 {[%emt 0:00:02]} 7. Nc3 {[%emt 0:01:51]} a6 {[%emt 0:00:10]} 8. Bb3 {[%emt 0:03:23]} Be7 {[%emt 0:06:57] 8...b5 gains popularity.} 9. Qe2 {[%emt 0:04:00]} O-O {[%emt 0:07:36] D27: Queen's Gambit Accepted: Classical main line: 7 e4!? and 7 a4.} 10. dxc5 {[%emt 0:05:15]} Bxc5 {[%emt 0:15:08]} 11. e4 {[%emt 0:00:29]} e5 {[%emt 0:08:57]} 12. Bg5 {[%emt 0:35:01]} Bg4 {[%emt 0:08:05]} 13. Qc4 $146 {[%emt 0:00:49]} ({Predecessor:} 13. Nd5 Be7 14. Bxf6 Bxf6 15. Qe3 Rc8 16. Rac1 Qd6 17. h3 Bxf3 18. Qxf3 Nd4 19. Qg4 {½-½ Agopov,M (2409)-Manninen,M (2426) FIN-chT 9900 1999 (1)}) 13... Be7 {[%emt 0:06:10]} 14. Rad1 {[%emt 0:04:16]} Qc8 {[%emt 0:01:59]} 15. Qd3 {[%emt 0:07:17]} h6 {[%emt 0:12:34]} 16. Bxf6 {[%emt 0:01:35]} Bxf6 {[%emt 0:00:11]} 17. Nd5 {[%emt 0:00:05]} Qd8 {[%emt 0:10:03]} 18. h3 {[%emt 0:01:45]} Bxf3 {[%emt 0:02:10]} 19. Qxf3 {[%emt 0:00:11]} Bg5 {[%emt 0:00:13]} 20. g3 {[%emt 0:03:24]} (20. Qg4 $5) 20... Nd4 {[%emt 0:06:22]} 21. Qg4 {[%emt 0:02:36]} Qc8 {[%emt 0:00:53]} 22. f4 {[%emt 0:01:32]} Qxg4 {[%emt 0:03:32]} 23. hxg4 {[%emt 0:00:06]} Bd8 {[%emt 0:00:04]} 24. Kg2 {[%emt 0:00:32]} Re8 {[%emt 0:01:43]} 25. Rd3 {[%emt 0:03:32]} Rc8 {[%emt 0:01:09]} 26. Rf2 {[%emt 0:06:19]} Nxb3 {[%emt 0:02:33]} 27. Rxb3 {[%emt 0:00:08]} exf4 {[%emt 0:00:12]} 28. Rxb7 {[%emt 0:01:17]} Rxe4 {[%emt 0:00:34]} 29. Rxf4 {[%emt 0:00:14]} Re5 {[%emt 0:00:48]} 30. Rf5 {[%emt 0:02:07]} Rc2+ {[%emt 0:00:39]} 31. Kf3 {[%emt 0:01:17]} Rxf5+ {[%emt 0:00:38]} 32. gxf5 {[%emt 0:00:06]} Bg5 {[%emt 0:00:20]} 33. a4 {[%emt 0:03:00]} Rc5 {[%emt 0:00:06]} 34. Rd7 {[%emt 0:00:59]} Kf8 $2 {[%emt 0:00:49]} (34... a5 $11 {and Black is okay.}) 35. b4 $18 {[%emt 0:00:52]} Rc1 {[%emt 0:00:51]} (35... Rc6 $142 36. Rc7 Rc1) 36. Ra7 $18 {[%emt 0:00:27]} Ke8 {[%emt 0:00:28]} 37. Rxa6 {[%emt 0:00:33]} Kd7 {[%emt 0:00:16]} 38. b5 {[%emt 0:02:03]} Rb1 {[%emt 0:00:05]} (38... h5 $142 39. Ra8 Rb1) 39. Rc6 $18 {[%emt 0:02:32]} (39. Ke4 h5 40. f6 gxf6 $18) 39... Bd8 {[%emt 0:00:35]} 40. Nb6+ {[%emt 0:01:13]} Ke7 {[%emt 0:00:40]} 41. Nc4 {[%emt 0:16:14]} Rb3+ {[%emt 0:02:37]} 42. Kg2 {[%emt 0:00:00]} Kd7 {[%emt 0:03:54]} 43. Rc5 {[%emt 0:00:00]} (43. Ne5+ Ke7 44. Nc4 Kd7 $18) 43... Bc7 {[%emt 0:00:53]} 44. a5 {[%emt 0:00:00]} Rxg3+ {[%emt 0:01:54]} 45. Kf2 {[%emt 0:00:00]} Rc3 {[%emt 0:01:41]} 46. a6 {[%emt 0:00:00]} Rc2+ {[%emt 0:01:00]} (46... Kd8 $142 47. Ke2 (47. a7 Rc2+ 48. Ke3 Ra2 $16) 47... Rc1 48. Rd5+ (48. a7 Ra1 $16) 48... Ke8 49. Nd6+ (49. a7 Ra1 $16) 49... Kd8 50. Nxf7+ Ke7) 47. Kf3 $18 {[%emt 0:00:00]} Ra2 {[%emt 0:00:14]} 48. b6 {[%emt 0:00:42]} Bxb6 {[%emt 0:01:10]} 49. Nxb6+ {[%emt 0:00:38]} Kd6 {[%emt 0:00:05] [#]} 50. Ra5 $1 {[%emt 0:00:08]} ({Weaker is} 50. Rd5+ Kc6 $11) 50... Rxa5 {[%emt 0:00:07]} 51. Nc4+ {[%emt 0:00:04]} Kc6 {[%emt 0:00:04]} 52. Nxa5+ {[%emt 0:00:04]} Kb6 {[%emt 0:00:02]} 53. Nc4+ {[%emt 0:00:08]} Kxa6 {[%emt 0:00:03]} 54. Nd6 {[%emt 0:00:07]} Kb6 {[%emt 0:00:29]} 55. Nxf7 {[%emt 0:00:18]} Kc6 {[%emt 0:00:22]} 56. Ke4 {[%emt 0:00:20]} Kd7 {[%emt 0:00:04]} 57. Ke5 {[%emt 0:00:22]} Ke7 {[%emt 0:00:06]} 58. Nh8 {[%emt 0:00:25]} Kf8 {[%emt 0:00:54]} 59. Ke6 {[%emt 0:01:34]} Kg8 {[%emt 0:00:08]} 60. Ng6 {[%emt 0:00:05]} h5 {[%emt 0:00:54]} 61. Ke5 {[%emt 0:00:58]} Kf7 {[%emt 0:00:40]} 62. Kf4 {[%emt 0:00:10]} Kf6 {[%emt 0:00:04]} 63. Nh4 {[%emt 0:00:04]} 1-0

[Event "CIS Master Groups 2024"]
[Site "Vasto"]
[Date "2024.04.09"]
[Round "2.10"]
[White "Sedina, Elena"]
[Black "Seresin, Francesco"]
[Result "1/2-1/2"]
[ECO "B12"]
[WhiteElo "2190"]
[BlackElo "2336"]
[Annotator "RC"]
[PlyCount "84"]
[EventDate "2024.04.07"]
[EventType "team-tourn"]
[EventCountry "ITA"]
[SourceTitle "playchess.com"]
[Source "ChessBase"]
[SourceQuality "1"]
[TimeControl "40/5400+30:900+30"]

1. e4 {[%emt 0:03:55]} c6 {[%emt 0:04:07]} 2. d4 {[%emt 0:00:47]} d5 {[%emt 0:00:13]} 3. e5 {[%emt 0:00:20]} c5 {[%emt 0:01:00]} 4. dxc5 {[%emt 0:03:52]} e6 {[%emt 0:00:20]} 5. Nf3 {[%emt 0:04:33]} Bxc5 {[%emt 0:02:21]} 6. c3 {[%emt 0:00:58]} Nc6 {[%emt 0:07:29]} 7. b4 {[%emt 0:01:40]} Be7 {[%emt 0:02:26]} 8. b5 {[%emt 0:01:22]} Na5 {[%emt 0:06:32]} 9. Bd3 {[%emt 0:00:41]} Qc7 {[%emt 0:05:01]} 10. O-O {[%emt 0:01:13]} Bd7 {[%emt 0:09:22]} 11. Qe2 {[%emt 0:26:21]} Rc8 {[%emt 0:08:44]} 12. Nd4 {[%emt 0:08:02]} h5 {[%emt 0:06:24]} 13. a4 {[%emt 0:06:13]} g6 {[%emt 0:04:16]} 14. Re1 {[%emt 0:12:34]} Nh6 {[%emt 0:01:59]} 15. h3 {[%emt 0:08:05]} Nf5 {[%emt 0:08:46]} 16. Nxf5 {[%emt 0:07:19]} exf5 {[%emt 0:04:40]} 17. Bb2 {[%emt 0:07:04]} Nb3 {[%emt 0:09:14]} 18. Ra2 {[%emt 0:00:08]} Be6 {[%emt 0:00:14]} 19. Nd2 {[%emt 0:03:36]} d4 {[%emt 0:05:56]} 20. c4 {[%emt 0:00:24]} Nxd2 {[%emt 0:00:25]} 21. Qxd2 {[%emt 0:00:02]} O-O {[%emt 0:00:09]} 22. Raa1 {[%emt 0:01:14]} Qd7 {[%emt 0:00:25]} 23. Qe2 {[%emt 0:00:20]} Rc7 {[%emt 0:00:30]} 24. Red1 {[%emt 0:00:59]} Bc5 {[%emt 0:02:22]} 25. Qd2 {[%emt 0:00:19]} Rfc8 {[%emt 0:00:53]} 26. Rac1 {[%emt 0:00:31]} Qe7 {[%emt 0:00:24]} 27. Rc2 {[%emt 0:00:45]} Qf8 {[%emt 0:01:03]} 28. Qf4 {[%emt 0:00:18]} Bb6 {[%emt 0:07:06]} 29. Rdc1 {[%emt 0:00:47]} Qb4 {[%emt 0:00:34]} 30. Bxd4 {[%emt 0:00:27]} Qxa4 {[%emt 0:00:19]} 31. Bxb6 {[%emt 0:00:36]} axb6 {[%emt 0:00:05]} 32. Bf1 {[%emt 0:00:30]} Qb4 {[%emt 0:00:19]} 33. h4 {[%emt 0:00:28]} Rd7 {[%emt 0:00:15]} 34. g3 {[%emt 0:00:28]} Qc5 {[%emt 0:00:05]} 35. Bg2 {[%emt 0:00:27]} Rd4 {[%emt 0:00:15]} 36. Qe3 {[%emt 0:00:14]} Rd7 {[%emt 0:00:49]} 37. Qe2 {[%emt 0:00:35]} Rcd8 {[%emt 0:00:12]} 38. Bd5 {[%emt 0:00:50]} Bxd5 {[%emt 0:01:24]} 39. cxd5 {[%emt 0:00:00]} Qxd5 {[%emt 0:00:08]} 40. Qe3 {[%emt 0:00:55]} Qxb5 {[%emt 0:01:24]} 41. e6 {[%emt 0:15:34]} Rd1+ {[%emt 0:16:56]} 42. Kh2 {[%emt 0:00:00]} Rxc1 {[%emt 0:00:00]} 1/2-1/2